[Event "*** Titled Tuesday 3|2 Blitz"]
[Site "Chess.com"]
[Date "2016.06.07"]
[Round "8"]
[White "annakantane"]
[Black "iaraldinho"]
[Result "0-1"]
[WhiteElo "2302"]
[BlackElo "2462"]
[TimeControl "180+2"]
[EndTime "12:38:47 PDT"]
[Termination "iaraldinho won on time"]

1. e4 {[%clk 0:03:01.9]} 1... c5 {[%clk 0:02:59.8]} 2. Nf3 {[%clk 0:03:02.2]}
2... a6 {[%clk 0:03:00]} 3. c4 {[%clk 0:02:57.7]} 3... d6 {[%clk 0:02:59.7]} 4.
d4 {[%clk 0:02:57.2]} 4... cxd4 {[%clk 0:03:00.6]} 5. Nxd4 {[%clk 0:02:58]} 5...
Nf6 {[%clk 0:03:02.2]} 6. Nc3 {[%clk 0:02:58.7]} 6... e6 {[%clk 0:03:03.4]} 7.
Be2 {[%clk 0:02:58.4]} 7... Be7 {[%clk 0:03:04.5]} 8. O-O {[%clk 0:02:59.3]}
8... O-O {[%clk 0:03:05.4]} 9. Be3 {[%clk 0:03:00.8]} 9... Nc6 {[%clk
0:03:05.3]} 10. Rc1 {[%clk 0:02:57]} 10... Bd7 {[%clk 0:03:06]} 11. f3 {[%clk
0:02:50.1]} 11... Rc8 {[%clk 0:03:05.2]} 12. Qd2 {[%clk 0:02:49.1]} 12... Qc7
{[%clk 0:03:06.1]} 13. Nxc6 {[%clk 0:02:20.5]} 13... Bxc6 {[%clk 0:02:46.5]} 14.
Nd5 {[%clk 0:02:11.3]} 14... Bxd5 {[%clk 0:02:47.6]} 15. cxd5 {[%clk 0:02:10.3]}
15... Qd7 {[%clk 0:02:48.6]} 16. dxe6 {[%clk 0:02:01.8]} 16... fxe6 {[%clk
0:02:50.5]} 17. b3 {[%clk 0:02:02.1]} 17... d5 {[%clk 0:02:48.8]} 18. e5 {[%clk
0:01:46.2]} 18... Ne8 {[%clk 0:02:41]} 19. Rxc8 {[%clk 0:01:44.1]} 19... Qxc8
{[%clk 0:02:42]} 20. Rc1 {[%clk 0:01:45.2]} 20... Qb8 {[%clk 0:02:37.9]} 21. f4
{[%clk 0:01:31]} 21... g6 {[%clk 0:02:38.7]} 22. Bb6 {[%clk 0:01:15.7]} 22...
Ng7 {[%clk 0:02:35.5]} 23. g4 {[%clk 0:01:03.7]} 23... g5 {[%clk 0:02:23.2]} 24.
fxg5 {[%clk 0:00:46.6]} 24... Qxe5 {[%clk 0:02:23.6]} 25. Bd4 {[%clk 0:00:46.8]}
25... Qxg5 {[%clk 0:02:21.8]} 26. Qxg5 {[%clk 0:00:46.7]} 26... Bxg5 {[%clk
0:02:22.8]} 27. Rc7 {[%clk 0:00:47.8]} 27... Bf6 {[%clk 0:02:19.5]} 28. Bc5
{[%clk 0:00:36.6]} 28... Rb8 {[%clk 0:02:04.3]} 29. Ba7 {[%clk 0:00:37.1]} 29...
Ra8 {[%clk 0:02:05.5]} 30. Bb6 {[%clk 0:00:36.8]} 30... e5 {[%clk 0:01:54]} 31.
Rxb7 {[%clk 0:00:36.8]} 31... Ne6 {[%clk 0:01:55.2]} 32. Ba7 {[%clk 0:00:21.3]}
32... e4 {[%clk 0:01:53.9]} 33. Rb8+ {[%clk 0:00:22.1]} 33... Rxb8 {[%clk
0:01:54]} 34. Bxb8 {[%clk 0:00:23.7]} 34... a5 {[%clk 0:01:52.7]} 35. Bb5 {[%clk
0:00:16]} 35... Kg7 {[%clk 0:01:52.5]} 36. Kf2 {[%clk 0:00:16.3]} 36... d4
{[%clk 0:01:53.6]} 37. Bc6 {[%clk 0:00:16.7]} 37... Bh4+ {[%clk 0:01:49.9]} 38.
Ke2 {[%clk 0:00:16.6]} 38... d3+ {[%clk 0:01:43.5]} 39. Kd2 {[%clk 0:00:12]}
39... Bg5+ {[%clk 0:01:44.5]} 40. Kc3 {[%clk 0:00:13]} 40... Nc5 {[%clk
0:01:45]} 41. Be5+ {[%clk 0:00:12.4]} 41... Bf6 {[%clk 0:01:44.9]} 42. Bxf6+
{[%clk 0:00:07.9]} 42... Kxf6 {[%clk 0:01:46.8]} 43. a3 {[%clk 0:00:09.2]} 43...
e3 {[%clk 0:01:46.5]} 44. b4 {[%clk 0:00:10.6]} 44... axb4+ {[%clk 0:01:46.8]}
45. axb4 {[%clk 0:00:11.6]} 45... e2 {[%clk 0:01:34.5]} 46. Kd2 {[%clk
0:00:11.9]} 46... Nb3+ {[%clk 0:01:34.5]} 47. Ke1 {[%clk 0:00:12.3]} 47... Nd4
{[%clk 0:01:35.6]} 48. g5+ {[%clk 0:00:03.6]} 48... Ke7 {[%clk 0:01:35.6]} 0-1

[Event "*** Titled Tuesday 3|2 Blitz"]
[Site "Chess.com"]
[Date "2016.06.07"]
[Round "8"]
[White "rdclayton"]
[Black "mwpchess"]
[Result "0-1"]
[WhiteElo "2063"]
[BlackElo "2364"]
[TimeControl "180+2"]
[EndTime "12:39:02 PDT"]
[Termination "mwpchess won by resignation"]

1. d4 {[%clk 0:02:52.3]} 1... Nf6 {[%clk 0:03:00.1]} 2. c4 {[%clk 0:02:53.2]}
2... e6 {[%clk 0:03:01]} 3. Nf3 {[%clk 0:02:53.8]} 3... d5 {[%clk 0:03:00.6]} 4.
Nc3 {[%clk 0:02:54.9]} 4... dxc4 {[%clk 0:03:00.7]} 5. e3 {[%clk 0:02:49.6]}
5... a6 {[%clk 0:03:00.7]} 6. Bxc4 {[%clk 0:02:50.4]} 6... b5 {[%clk 0:03:01]}
7. Be2 {[%clk 0:02:47.1]} 7... Bb7 {[%clk 0:03:00.8]} 8. O-O {[%clk 0:02:45.9]}
8... Nbd7 {[%clk 0:03:00.9]} 9. Qc2 {[%clk 0:02:40.8]} 9... c5 {[%clk
0:02:59.4]} 10. Rd1 {[%clk 0:02:38]} 10... cxd4 {[%clk 0:02:59.9]} 11. Nxd4
{[%clk 0:02:38.5]} 11... Qb8 {[%clk 0:03:00.2]} 12. Nb3 {[%clk 0:01:42.2]} 12...
Bd6 {[%clk 0:02:56.7]} 13. Na5 {[%clk 0:01:38.3]} 13... Bxh2+ {[%clk 0:02:54]}
14. Kh1 {[%clk 0:01:39.5]} 14... Bc7 {[%clk 0:02:53.8]} 15. Nxb7 {[%clk
0:01:39.4]} 15... Qxb7 {[%clk 0:02:53.8]} 16. Bf3 {[%clk 0:01:40.7]} 16... Qa7
{[%clk 0:02:41.2]} 17. Bxa8 {[%clk 0:01:40.2]} 17... Qxa8 {[%clk 0:02:41.7]} 18.
b3 {[%clk 0:01:19.4]} 18... O-O {[%clk 0:02:38.2]} 19. Bb2 {[%clk 0:01:18.1]}
19... Rc8 {[%clk 0:02:37.6]} 20. Qe2 {[%clk 0:01:14.6]} 20... b4 {[%clk
0:02:30]} 21. Na4 {[%clk 0:01:13.4]} 21... Qe4 {[%clk 0:02:29.7]} 22. Qf3 {[%clk
0:00:54.7]} 22... Qh4+ {[%clk 0:02:27.8]} 23. Qh3 {[%clk 0:00:55.4]} 23... Qxf2
{[%clk 0:02:24.8]} 24. Rac1 {[%clk 0:00:50.8]} 24... Ne4 {[%clk 0:02:04.2]} 25.
Rxd7 {[%clk 0:00:19.6]} 25... Ng3+ {[%clk 0:02:04.1]} 26. Qxg3 {[%clk
0:00:20.8]} 26... Qxg3 {[%clk 0:02:03.4]} 27. Rcxc7 {[%clk 0:00:22.3]} 27...
Qxc7 {[%clk 0:01:12.8]} 28. Rxc7 {[%clk 0:00:22.6]} 28... Rxc7 {[%clk 0:01:14]}
29. Kg1 {[%clk 0:00:21.2]} 29... Rc2 {[%clk 0:01:13.9]} 30. Bd4 {[%clk
0:00:15.1]} 30... Rxa2 {[%clk 0:01:12.7]} 31. Bc5 {[%clk 0:00:16.2]} 31... Ra3
{[%clk 0:01:09.6]} 32. Bxb4 {[%clk 0:00:12.7]} 32... Rxb3 {[%clk 0:01:10.4]} 33.
Bc5 {[%clk 0:00:13.1]} 33... Rb1+ {[%clk 0:01:01.8]} 34. Kf2 {[%clk 0:00:14.4]}
34... Ra1 {[%clk 0:01:02.8]} 35. Nc3 {[%clk 0:00:14.8]} 35... f6 {[%clk
0:00:59.1]} 36. Kf3 {[%clk 0:00:14.6]} 36... Kf7 {[%clk 0:00:59.5]} 37. Ne4
{[%clk 0:00:11.6]} 37... g5 {[%clk 0:00:58.2]} 38. Nd6+ {[%clk 0:00:12.2]} 38...
Kg6 {[%clk 0:00:58.5]} 39. Ne8 {[%clk 0:00:11.3]} 39... Rc1 {[%clk 0:00:51.4]}
40. Bd4 {[%clk 0:00:10.1]} 40... a5 {[%clk 0:00:48.5]} 41. Nxf6 {[%clk
0:00:09.3]} 41... Rf1+ {[%clk 0:00:48.8]} 42. Ke2 {[%clk 0:00:05.9]} 42... Rxf6
{[%clk 0:00:49.3]} 0-1

[Event "*** Titled Tuesday 3|2 Blitz"]
[Site "Chess.com"]
[Date "2016.06.07"]
[Round "8"]
[White "andretta"]
[Black "talaicito"]
[Result "1-0"]
[WhiteElo "2156"]
[BlackElo "1931"]
[TimeControl "180+2"]
[EndTime "12:39:02 PDT"]
[Termination "andretta won on time"]

1. b3 {[%clk 0:02:39.3]} 1... e5 {[%clk 0:02:56.2]} 2. Bb2 {[%clk 0:02:41.2]}
2... d6 {[%clk 0:02:57.1]} 3. e3 {[%clk 0:02:25.8]} 3... g6 {[%clk 0:02:57.8]}
4. d4 {[%clk 0:02:12]} 4... Bg7 {[%clk 0:02:56.7]} 5. dxe5 {[%clk 0:02:07]} 5...
Nc6 {[%clk 0:02:57.4]} 6. Nf3 {[%clk 0:01:54.4]} 6... Bg4 {[%clk 0:02:53.2]} 7.
Be2 {[%clk 0:01:52.5]} 7... dxe5 {[%clk 0:02:48.6]} 8. O-O {[%clk 0:01:50.9]}
8... Qxd1 {[%clk 0:02:22.3]} 9. Rxd1 {[%clk 0:01:52.8]} 9... Nge7 {[%clk
0:02:22.8]} 10. h3 {[%clk 0:01:50]} 10... Bf5 {[%clk 0:02:18.8]} 11. c4 {[%clk
0:01:47.8]} 11... h5 {[%clk 0:01:59.3]} 12. Nc3 {[%clk 0:01:45.8]} 12... O-O
{[%clk 0:01:57.7]} 13. Nd5 {[%clk 0:01:41.5]} 13... e4 {[%clk 0:01:12.3]} 14.
Bxg7 {[%clk 0:01:43.4]} 14... Kxg7 {[%clk 0:01:07.1]} 15. Nh4 {[%clk 0:01:42.3]}
15... Rac8 {[%clk 0:01:02.6]} 16. Nxf5+ {[%clk 0:01:33.6]} 16... Nxf5 {[%clk
0:01:02.1]} 17. Nc3 {[%clk 0:01:32.5]} 17... Rfe8 {[%clk 0:00:53.2]} 18. Rac1
{[%clk 0:01:28.6]} 18... Ne5 {[%clk 0:00:49.2]} 19. Nxe4 {[%clk 0:01:23.4]}
19... h4 {[%clk 0:00:46.2]} 20. Nc5 {[%clk 0:01:20.7]} 20... b6 {[%clk
0:00:44.5]} 21. Ne4 {[%clk 0:01:15.5]} 21... Nc6 {[%clk 0:00:43.2]} 22. Ng5
{[%clk 0:01:04.9]} 22... Re7 {[%clk 0:00:43.5]} 23. c5 {[%clk 0:01:03.5]} 23...
Nb4 {[%clk 0:00:29]} 24. a3 {[%clk 0:00:59.2]} 24... Nxe3 {[%clk 0:00:11.3]} 25.
fxe3 {[%clk 0:00:57.6]} 25... Rxe3 {[%clk 0:00:12.1]} 26. axb4 {[%clk 0:00:55]}
26... Rxe2 {[%clk 0:00:12.9]} 27. Rd7 {[%clk 0:00:50.4]} 27... Kf6 {[%clk
0:00:13.2]} 28. Nxf7 {[%clk 0:00:47.1]} 28... Rb2 {[%clk 0:00:08.4]} 29. Rf1+
{[%clk 0:00:41]} 29... Ke6 {[%clk 0:00:08.9]} 30. c6 {[%clk 0:00:40.5]} 30...
Rxb3 {[%clk 0:00:06.3]} 31. Nd8+ {[%clk 0:00:41.4]} 31... Ke5 {[%clk 0:00:05.5]}
32. Re1+ {[%clk 0:00:27.3]} 32... Kf6 {[%clk 0:00:05.7]} 33. Rf7+ {[%clk
0:00:24.4]} 33... Kg5 {[%clk 0:00:06.2]} 34. Re8 {[%clk 0:00:22.5]} 34... Rb1+
{[%clk 0:00:02.6]} 35. Kh2 {[%clk 0:00:22.9]} 35... Rxb4 {[%clk 0:00:02.3]} 36.
Rd7 {[%clk 0:00:10.1]} 1-0

[Event "*** Titled Tuesday 3|2 Blitz"]
[Site "Chess.com"]
[Date "2016.06.07"]
[Round "8"]
[White "howitzer14"]
[Black "dretch"]
[Result "1-0"]
[WhiteElo "2731"]
[BlackElo "2601"]
[TimeControl "180+2"]
[EndTime "12:39:09 PDT"]
[Termination "howitzer14 won by checkmate"]

1. e4 {[%clk 0:03:01.9]} 1... e6 {[%clk 0:03:01.4]} 2. d4 {[%clk 0:03:01.4]}
2... d5 {[%clk 0:03:03]} 3. Nd2 {[%clk 0:03:03]} 3... c5 {[%clk 0:03:04]} 4.
Ngf3 {[%clk 0:03:03.2]} 4... cxd4 {[%clk 0:03:03.7]} 5. Nxd4 {[%clk 0:03:05.1]}
5... Nc6 {[%clk 0:03:04.1]} 6. Bb5 {[%clk 0:03:06.2]} 6... Bd7 {[%clk
0:03:05.1]} 7. Nxc6 {[%clk 0:03:07]} 7... bxc6 {[%clk 0:03:05.4]} 8. Bd3 {[%clk
0:03:08.1]} 8... Qc7 {[%clk 0:03:06.1]} 9. O-O {[%clk 0:03:06.9]} 9... Bd6
{[%clk 0:03:06]} 10. Nf3 {[%clk 0:03:07.3]} 10... dxe4 {[%clk 0:03:07.1]} 11.
Bxe4 {[%clk 0:03:07.5]} 11... Nf6 {[%clk 0:03:08.3]} 12. Re1 {[%clk 0:03:03.5]}
12... Nxe4 {[%clk 0:03:07.7]} 13. Rxe4 {[%clk 0:03:05.4]} 13... c5 {[%clk
0:03:06]} 14. Rg4 {[%clk 0:03:04.1]} 14... g6 {[%clk 0:03:02.7]} 15. Bg5 {[%clk
0:02:53]} 15... f5 {[%clk 0:02:37.7]} 16. Rh4 {[%clk 0:02:53.2]} 16... Bc6
{[%clk 0:02:29.1]} 17. Qe2 {[%clk 0:02:48.4]} 17... Kf7 {[%clk 0:02:13.2]} 18.
Re1 {[%clk 0:02:32.5]} 18... Rae8 {[%clk 0:02:07.5]} 19. Ne5+ {[%clk 0:02:29.6]}
19... Kg7 {[%clk 0:01:45.2]} 20. Bh6+ {[%clk 0:01:55.7]} 20... Kg8 {[%clk
0:01:44.3]} 21. Qe3 {[%clk 0:01:38.7]} 21... Bd5 {[%clk 0:01:37.8]} 22. c4
{[%clk 0:01:07.1]} 22... Bb7 {[%clk 0:01:16.5]} 23. Qc3 {[%clk 0:01:02.7]} 23...
Qe7 {[%clk 0:01:03.8]} 24. Rh3 {[%clk 0:00:55.8]} 24... Qf6 {[%clk 0:00:58.3]}
25. Rd3 {[%clk 0:00:52.5]} 25... Be7 {[%clk 0:00:32.8]} 26. Rd7 {[%clk
0:00:43.6]} 26... Bc8 {[%clk 0:00:32]} 27. Rd3 {[%clk 0:00:38.8]} 27... f4
{[%clk 0:00:17.7]} 28. h4 {[%clk 0:00:32]} 28... Qxh4 {[%clk 0:00:08.3]} 29. Ng4
{[%clk 0:00:31]} 29... Bf8 {[%clk 0:00:06.9]} 30. Nf6+ {[%clk 0:00:26.8]} 30...
Kf7 {[%clk 0:00:05.2]} 31. Nxe8 {[%clk 0:00:28]} 31... Qxh6 {[%clk 0:00:05.7]}
32. Qxh8 {[%clk 0:00:26.2]} 32... Kxe8 {[%clk 0:00:06.7]} 33. Red1 {[%clk
0:00:26.8]} 33... Kf7 {[%clk 0:00:06]} 34. Rd8 {[%clk 0:00:27.6]} 34... Ba6
{[%clk 0:00:04.6]} 35. R1d7+ {[%clk 0:00:24.4]} 35... Be7 {[%clk 0:00:06]} 36.
Qe8+ {[%clk 0:00:19.6]} 36... Kf6 {[%clk 0:00:07.3]} 37. Qxe7+ {[%clk
0:00:21.1]} 37... Kf5 {[%clk 0:00:08.6]} 38. Rf8+ {[%clk 0:00:22.2]} 38... Kg4
{[%clk 0:00:08.7]} 39. Qxe6+ {[%clk 0:00:23.4]} 39... Kg5 {[%clk 0:00:07.8]} 40.
Rd5+ {[%clk 0:00:24.5]} 40... Kh4 {[%clk 0:00:07.9]} 41. Qh3# {[%clk 0:00:26.2]}
1-0

[Event "*** Titled Tuesday 3|2 Blitz"]
[Site "Chess.com"]
[Date "2016.06.07"]
[Round "8"]
[White "DrHolmes13"]
[Black "Zhani-Z"]
[Result "1-0"]
[WhiteElo "2404"]
[BlackElo "2234"]
[TimeControl "180+2"]
[EndTime "12:39:30 PDT"]
[Termination "DrHolmes13 won on time"]

1. Nf3 {[%clk 0:02:53]} 1... Nf6 {[%clk 0:02:41.4]} 2. c4 {[%clk 0:02:53.6]}
2... e6 {[%clk 0:02:35.7]} 3. Nc3 {[%clk 0:02:54.3]} 3... c5 {[%clk 0:02:31.6]}
4. g3 {[%clk 0:02:54.2]} 4... b6 {[%clk 0:02:28.5]} 5. Bg2 {[%clk 0:02:54.7]}
5... Bb7 {[%clk 0:02:29.7]} 6. O-O {[%clk 0:02:55]} 6... Be7 {[%clk 0:02:31]} 7.
d4 {[%clk 0:02:54.6]} 7... cxd4 {[%clk 0:02:30.2]} 8. Qxd4 {[%clk 0:02:55.7]}
8... Nc6 {[%clk 0:02:26.2]} 9. Qd3 {[%clk 0:02:48.5]} 9... O-O {[%clk
0:02:07.4]} 10. Bf4 {[%clk 0:02:47.7]} 10... d5 {[%clk 0:02:07.2]} 11. cxd5
{[%clk 0:02:45.5]} 11... Nb4 {[%clk 0:02:07.7]} 12. Qd2 {[%clk 0:02:44.7]} 12...
Nbxd5 {[%clk 0:02:07.8]} 13. Nxd5 {[%clk 0:02:42.2]} 13... Nxd5 {[%clk
0:02:08.1]} 14. Be5 {[%clk 0:02:38.9]} 14... f6 {[%clk 0:02:08]} 15. Bc3 {[%clk
0:02:25.4]} 15... Nxc3 {[%clk 0:02:02.5]} 16. Qxc3 {[%clk 0:02:27.3]} 16... Rc8
{[%clk 0:02:01.9]} 17. Qe3 {[%clk 0:02:26.1]} 17... e5 {[%clk 0:01:54.8]} 18.
Nh4 {[%clk 0:02:24.2]} 18... Bxg2 {[%clk 0:01:51.4]} 19. Nxg2 {[%clk 0:02:23.6]}
19... Qc7 {[%clk 0:01:38]} 20. Qb3+ {[%clk 0:02:22.4]} 20... Qc4 {[%clk
0:01:35.5]} 21. Ne3 {[%clk 0:02:19.3]} 21... Qxb3 {[%clk 0:01:35.3]} 22. axb3
{[%clk 0:02:21.2]} 22... a5 {[%clk 0:01:27]} 23. Rfd1 {[%clk 0:02:21.1]} 23...
Bc5 {[%clk 0:01:13.3]} 24. Nc4 {[%clk 0:02:17.6]} 24... Rfd8 {[%clk 0:01:09.7]}
25. e3 {[%clk 0:02:14.9]} 25... Kf7 {[%clk 0:01:09.2]} 26. Kf1 {[%clk
0:02:14.8]} 26... Ke6 {[%clk 0:01:09.2]} 27. Ke2 {[%clk 0:02:15.4]} 27... e4
{[%clk 0:01:08.5]} 28. Rac1 {[%clk 0:02:05.4]} 28... Rxd1 {[%clk 0:01:03.4]} 29.
Rxd1 {[%clk 0:02:04]} 29... b5 {[%clk 0:01:02.6]} 30. Nd2 {[%clk 0:01:45.9]}
30... f5 {[%clk 0:01:02.3]} 31. Rc1 {[%clk 0:01:44.2]} 31... Rc7 {[%clk
0:01:02.4]} 32. b4 {[%clk 0:01:37.7]} 32... axb4 {[%clk 0:00:54.3]} 33. Nb3
{[%clk 0:01:38.6]} 33... Bd6 {[%clk 0:00:54.5]} 34. Nd4+ {[%clk 0:01:37.2]}
34... Kf6 {[%clk 0:00:31.4]} 35. Rxc7 {[%clk 0:01:36]} 35... Bxc7 {[%clk
0:00:31.4]} 36. Nxb5 {[%clk 0:01:32]} 36... Be5 {[%clk 0:00:29.9]} 37. b3 {[%clk
0:01:29.9]} 37... Ke6 {[%clk 0:00:30.1]} 38. f4 {[%clk 0:01:05.8]} 38... exf3+
{[%clk 0:00:18.7]} 39. Kxf3 {[%clk 0:01:07.1]} 39... Kd5 {[%clk 0:00:18]} 40.
Na7 {[%clk 0:00:55.8]} 1-0

[Event "*** Titled Tuesday 3|2 Blitz"]
[Site "Chess.com"]
[Date "2016.06.07"]
[Round "8"]
[White "severomorskij"]
[Black "Lukianoo"]
[Result "0-1"]
[WhiteElo "2598"]
[BlackElo "2628"]
[TimeControl "180+2"]
[EndTime "12:39:51 PDT"]
[Termination "Lukianoo won on time"]

1. d4 {[%clk 0:03:01.9]} 1... Nf6 {[%clk 0:02:54.2]} 2. c4 {[%clk 0:03:02.2]}
2... e6 {[%clk 0:02:54.6]} 3. Nf3 {[%clk 0:03:02.4]} 3... Bb4+ {[%clk
0:02:52.2]} 4. Nbd2 {[%clk 0:03:01]} 4... b6 {[%clk 0:02:45.9]} 5. a3 {[%clk
0:02:49.5]} 5... Bxd2+ {[%clk 0:02:46.8]} 6. Qxd2 {[%clk 0:02:50.8]} 6... Bb7
{[%clk 0:02:46]} 7. e3 {[%clk 0:02:52]} 7... O-O {[%clk 0:02:45.3]} 8. Be2
{[%clk 0:02:53.3]} 8... d6 {[%clk 0:02:44.2]} 9. b4 {[%clk 0:02:51.2]} 9... Nbd7
{[%clk 0:02:40.3]} 10. Bb2 {[%clk 0:02:52.2]} 10... Ne4 {[%clk 0:02:40.2]} 11.
Qd3 {[%clk 0:02:53.3]} 11... f5 {[%clk 0:02:39.6]} 12. O-O {[%clk 0:02:54.4]}
12... Rf6 {[%clk 0:02:34.8]} 13. d5 {[%clk 0:02:54.1]} 13... Rg6 {[%clk
0:02:29.5]} 14. dxe6 {[%clk 0:02:23.2]} 14... Rxe6 {[%clk 0:02:26.5]} 15. Nd4
{[%clk 0:02:16.8]} 15... Rg6 {[%clk 0:02:24.5]} 16. g3 {[%clk 0:02:11.3]} 16...
Ne5 {[%clk 0:02:20.6]} 17. Qc2 {[%clk 0:02:09.9]} 17... Ng5 {[%clk 0:02:16.9]}
18. f3 {[%clk 0:01:53.2]} 18... c5 {[%clk 0:02:14.7]} 19. bxc5 {[%clk 0:01:37]}
19... bxc5 {[%clk 0:02:16.6]} 20. Nxf5 {[%clk 0:01:26.4]} 20... Ngxf3+ {[%clk
0:02:13.8]} 21. Bxf3 {[%clk 0:01:26.4]} 21... Nxf3+ {[%clk 0:02:14.2]} 22. Rxf3
{[%clk 0:01:26]} 22... Bxf3 {[%clk 0:02:12.9]} 23. Rf1 {[%clk 0:01:20.2]} 23...
Bg4 {[%clk 0:02:01.3]} 24. Qe4 {[%clk 0:00:29.7]} 24... Bxf5 {[%clk 0:01:54.3]}
25. Qxf5 {[%clk 0:00:26.8]} 25... Qe8 {[%clk 0:01:48.8]} 26. Qd5+ {[%clk
0:00:22.1]} 26... Kh8 {[%clk 0:01:45.9]} 27. e4 {[%clk 0:00:17.7]} 27... Rb8
{[%clk 0:01:35.4]} 28. Bc3 {[%clk 0:00:18.6]} 28... h6 {[%clk 0:01:30.6]} 29.
Rf7 {[%clk 0:00:18.3]} 29... Rg5 {[%clk 0:01:20.8]} 30. Qxd6 {[%clk 0:00:10.7]}
30... Rb1+ {[%clk 0:01:13.8]} 31. Rf1 {[%clk 0:00:09.1]} 31... Rxf1+ {[%clk
0:01:11.8]} 32. Kxf1 {[%clk 0:00:11]} 32... Kh7 {[%clk 0:01:06]} 33. Qf4 {[%clk
0:00:11.4]} 33... Qe6 {[%clk 0:01:02.7]} 34. h4 {[%clk 0:00:09]} 34... Rg4
{[%clk 0:01:00.2]} 35. Qf3 {[%clk 0:00:08.6]} 35... Qxc4+ {[%clk 0:00:55.8]} 36.
Kf2 {[%clk 0:00:10]} 36... Qxe4 {[%clk 0:00:54.1]} 37. Qf7 {[%clk 0:00:10.7]}
37... Qg6 {[%clk 0:00:51]} 38. Qf3 {[%clk 0:00:10.7]} 38... Qc2+ {[%clk
0:00:46.1]} 39. Kg1 {[%clk 0:00:10.6]} 39... Rg6 {[%clk 0:00:42]} 40. Be1 {[%clk
0:00:10.1]} 40... Re6 {[%clk 0:00:36.7]} 41. Bf2 {[%clk 0:00:10.6]} 41... c4
{[%clk 0:00:33.5]} 42. Qd5 {[%clk 0:00:10.6]} 42... Qb1+ {[%clk 0:00:31.3]} 43.
Kh2 {[%clk 0:00:11]} 43... Qe4 {[%clk 0:00:32.8]} 44. Qc5 {[%clk 0:00:11.7]}
44... Qd3 {[%clk 0:00:30.4]} 45. g4 {[%clk 0:00:09.6]} 45... c3 {[%clk
0:00:28.8]} 46. g5 {[%clk 0:00:05.9]} 46... Qd6+ {[%clk 0:00:29]} 0-1

[Event "*** Titled Tuesday 3|2 Blitz"]
[Site "Chess.com"]
[Date "2016.06.07"]
[Round "8"]
[White "Dlugy"]
[Black "hansen"]
[Result "0-1"]
[WhiteElo "2590"]
[BlackElo "2570"]
[TimeControl "180+2"]
[EndTime "12:39:56 PDT"]
[Termination "hansen won by resignation"]

1. d4 {[%clk 0:03:01.9]} 1... Nf6 {[%clk 0:02:58.1]} 2. Bf4 {[%clk 0:03:03.5]}
2... d6 {[%clk 0:02:57]} 3. Nc3 {[%clk 0:03:02]} 3... a6 {[%clk 0:02:53.7]} 4.
e4 {[%clk 0:03:00.2]} 4... Nc6 {[%clk 0:02:48.2]} 5. d5 {[%clk 0:02:57.8]} 5...
Ne5 {[%clk 0:02:48.9]} 6. Nf3 {[%clk 0:02:51.3]} 6... Bg4 {[%clk 0:02:44.8]} 7.
Be2 {[%clk 0:02:51.7]} 7... Bxf3 {[%clk 0:02:43.3]} 8. gxf3 {[%clk 0:02:50.6]}
8... c6 {[%clk 0:02:35]} 9. dxc6 {[%clk 0:02:50.8]} 9... bxc6 {[%clk 0:02:35.7]}
10. Be3 {[%clk 0:02:51]} 10... e6 {[%clk 0:02:34.1]} 11. f4 {[%clk 0:02:52]}
11... Ned7 {[%clk 0:02:34.8]} 12. Rg1 {[%clk 0:02:38]} 12... d5 {[%clk
0:02:31.3]} 13. e5 {[%clk 0:02:38.8]} 13... Ng8 {[%clk 0:02:31.3]} 14. Na4
{[%clk 0:02:34]} 14... Ne7 {[%clk 0:02:28.3]} 15. Bd3 {[%clk 0:02:33]} 15... g6
{[%clk 0:02:26.1]} 16. c4 {[%clk 0:02:34]} 16... dxc4 {[%clk 0:02:12.3]} 17.
Bxc4 {[%clk 0:02:31.2]} 17... Nd5 {[%clk 0:02:14.2]} 18. Bxd5 {[%clk 0:02:11.5]}
18... cxd5 {[%clk 0:02:13.2]} 19. Rc1 {[%clk 0:02:12.9]} 19... Bb4+ {[%clk
0:02:10.5]} 20. Kf1 {[%clk 0:02:13.7]} 20... O-O {[%clk 0:02:04.5]} 21. a3
{[%clk 0:02:12.4]} 21... Be7 {[%clk 0:02:01]} 22. h4 {[%clk 0:01:58.4]} 22...
Qa5 {[%clk 0:01:56]} 23. h5 {[%clk 0:01:53.4]} 23... Rac8 {[%clk 0:01:55.6]} 24.
hxg6 {[%clk 0:01:45.9]} 24... fxg6 {[%clk 0:01:49.2]} 25. Rxc8 {[%clk
0:01:26.4]} 25... Rxc8 {[%clk 0:01:48.5]} 26. Kg2 {[%clk 0:01:26.1]} 26... Qb5
{[%clk 0:01:40.5]} 27. b4 {[%clk 0:01:18.9]} 27... Rc4 {[%clk 0:01:12.4]} 28.
Kh3 {[%clk 0:00:58]} 28... a5 {[%clk 0:00:51.6]} 29. Qg4 {[%clk 0:00:58]} 29...
Kf7 {[%clk 0:00:44.3]} 30. Nc5 {[%clk 0:00:42.2]} 30... Nxc5 {[%clk 0:00:32]}
31. Bxc5 {[%clk 0:00:43.7]} 31... Bxc5 {[%clk 0:00:26.8]} 32. bxc5 {[%clk
0:00:45.3]} 32... Rc3+ {[%clk 0:00:27.6]} 33. Kh2 {[%clk 0:00:46.2]} 33... Qxc5
{[%clk 0:00:24.7]} 34. Qh4 {[%clk 0:00:47.1]} 34... Kg8 {[%clk 0:00:26]} 35. Rb1
{[%clk 0:00:43.4]} 35... Qc7 {[%clk 0:00:16.8]} 36. Qf6 {[%clk 0:00:38.4]} 36...
Rc6 {[%clk 0:00:11.1]} 37. Rb5 {[%clk 0:00:36.6]} 37... d4 {[%clk 0:00:11.5]}
38. Rb3 {[%clk 0:00:37.5]} 38... Qc8 {[%clk 0:00:10.2]} 39. Rd3 {[%clk
0:00:27.3]} 39... Rc4 {[%clk 0:00:09.4]} 40. Rb3 {[%clk 0:00:28.3]} 40... Rc6
{[%clk 0:00:08.8]} 41. Kg3 {[%clk 0:00:23.7]} 41... Rc3+ {[%clk 0:00:08.9]} 42.
Rxc3 {[%clk 0:00:22.1]} 42... dxc3 {[%clk 0:00:10.8]} 43. f5 {[%clk 0:00:23.5]}
43... gxf5 {[%clk 0:00:08.8]} 44. Qg5+ {[%clk 0:00:24.1]} 44... Kf8 {[%clk
0:00:09.5]} 45. Qf6+ {[%clk 0:00:24]} 45... Ke8 {[%clk 0:00:10.7]} 46. Qh8+
{[%clk 0:00:23.6]} 46... Kd7 {[%clk 0:00:11.8]} 47. Qxh7+ {[%clk 0:00:25.2]}
47... Kc6 {[%clk 0:00:13.1]} 48. Qh1+ {[%clk 0:00:23.2]} 48... Kb5 {[%clk
0:00:12.1]} 49. Qb1+ {[%clk 0:00:20.5]} 49... Ka4 {[%clk 0:00:12.9]} 50. Qc2+
{[%clk 0:00:20.2]} 50... Kxa3 {[%clk 0:00:14]} 51. Kf4 {[%clk 0:00:21.8]} 51...
Qc4+ {[%clk 0:00:12.6]} 52. Kg5 {[%clk 0:00:23.2]} 52... Qb3 {[%clk 0:00:13.9]}
53. Qc1+ {[%clk 0:00:23.7]} 53... Qb2 {[%clk 0:00:15.4]} 54. Qe3 {[%clk
0:00:25]} 54... Qd2 {[%clk 0:00:13.3]} 0-1